Cogmind - Beta 9.2 @@@ ROGUE MODE // 2019.11.30 @ 16:51:20 Player: Cipherpunk Result: Destroyed by as-75175 with Assembled Heavy Rifle Performance ------------- Evolutions (0) 0 Regions Visited (2) 400 Robots Destroyed (9) 45 Value Destroyed (143) 143 Prototype IDs (0) 0 Alien Tech Used (0) 0 Bonus (0) 0 TOTAL SCORE: 588 Bonus ------- None Cogmind --------- Core Integrity 0/250 Matter 300/300 Energy 99/100 System Corruption 0% Temperature Cool (0) Movement Core (50) Location -10/Mines Parts ------- > --- POWER (1) -------- (None) > --- PROPULSION (2) --- (None) > --- UTILITY (2) ------ (None) > --- WEAPON (2) ------- (None) > --- INVENTORY (4) ---- Large Storage Unit Large Storage Unit Large Storage Unit Light Armor Plating Peak State ------------ > --- POWER ------------ Light Ion Engine > --- PROPULSION ------- Compact Wheel Compact Wheel > --- UTILITY ---------- Small Storage Unit Improved Terrain Scanner > --- WEAPON ----------- Medium Laser Assault Rifle > --- INVENTORY -------- Light Ion Engine Wheel Wheel Seismic Analyzer Mining Laser [Rating: 8] Favorites ----------- Power Light Ion Engine Engine Light Ion Engine Propulsion Compact Wheel Wheel Compact Wheel Utility Improved Terrain Scanner Device Improved Terrain Scanner Storage Small Storage Unit Processor Seismic Analyzer Weapon Mining Laser Energy Gun Medium Laser Ballistic Gun Assault Rifle Ballistic Cannon Light Cannon Special Weapon Mining Laser Build | -11 -10 -10 ------- Run | Scr Mat Min Slots Evolved . | . . . Power . | . . . Propulsion . | . . . Utility . | . . . Weapon . | . . . Parts Attached 23 | 7 10 6 Power 3 | 1 2 . Engine 3 | 1 2 . Core . | . . . Reactor . | . . . Propulsion 4 | 2 . 2 Treads . | . . . Leg . | . . . Wheel 4 | 2 . 2 Hover . | . . . Flight . | . . . Utility 8 | 2 4 2 Device 2 | 1 . 1 Storage 5 | 1 4 . Processor 1 | . . 1 Hackware . | . . . Protection . | . . . Artifact . | . . . Weapon 8 | 2 4 2 Energy Gun 2 | 1 1 . Energy Cannon . | . . . Ballistic Gun 1 | 1 . . Ballistic Cannon 1 | . 1 . Launcher . | . . . Special Weapon 4 | . 2 2 Impact Weapon . | . . . Slashing Weapon . | . . . Piercing Weapon . | . . . Special Melee Weapon . | . . . Unidentified Prototypes . | . . . Parts Lost 11 | . 4 7 Power 1 | . . 1 Propulsion 2 | . . 2 Utility 2 | . . 2 Weapon 6 | . 4 2 Highest Loss Streak 7 | . 2 7 Average Slot Usage (%) 95 | . 95 95 Engine 13 | . 14 13 Wheel 27 | . 28 26 Device 10 | . 9 13 Storage 13 | . 18 . Processor 3 | . . 12 Energy Gun 4 | . 6 . Ballistic Gun 4 | . 6 . Ballistic Cannon 2 | . 3 . Special Weapon 12 | . 7 25 Naked Turns 9 | . . 9 Heaviest Build 41 | 12 41 6 Greatest Support 32 | 32 32 20 Greatest Overweight (x) 1 | . 1 . Average Overweight (x) . | . . . Largest Inventory Capacity 16 | 6 16 10 Average Capacity 7 | 5 9 4 Most Carried 10 | 6 10 10 Average Carried 5 | 2 7 4 Final Capacity 14 | 6 14 4 Final Carried 9 | 6 9 4 Class Distribution -------------------- 77% | Mutant 22% | Scavenger-Mutant Dominant Class ---------------- Mutant | -10/Materials Scavenger-Mutant | -10/Mines Resources | -11 -10 -10 ----------- Run | Scr Mat Min Matter Collected 512 | 297 120 95 Remotely . | . . . Salvage Created 290 | 156 134 . Parts 15 | 9 6 . Haulers Intercepted . | . . . Recyclers Shooed . | . . . Parts Field Recycled . | . . . Retrieved Matter . | . . . Parts Self-Destructed . | . . . Prevented . | . . . Kills | -11 -10 -10 ------- Run | Scr Mat Min Combat Hostiles Destroyed 5 | . 5 . Guns 4 | . 4 . Cannons 1 | . 1 . Classes Destroyed 5 | 3 2 . Worker 1 | 1 . . Tunneler 2 | 2 . . Recycler 1 | 1 . . Swarmer 2 | . 2 . Grunt 3 | . 3 . Best Kill Streak 4 | 4 3 . Combat Bots Only 3 | . 3 . Max Kills in Single Turn 1 | 1 1 . Gunslinging . | . . . Exploded . | . . . Melee . | . . . Uniques/NPCs Destroyed . | . . . Combat | -11 -10 -10 -------- Run | Scr Mat Min Damage Taken 863 | . 545 318 Core 260 | . 114 146 Absorbed by Shields . | . . . Core Remaining (%) 100 | 100 . . Volleys Fired 41 | 9 28 4 Largest 2 | 2 2 2 Hottest 200 | 70 120 200 Shots Fired 75 | 18 49 8 Gun 61 | 18 43 . Cannon . | . . . Launcher . | . . . Special 14 | . 6 8 Kinetic 34 | 9 25 . Thermal 41 | 9 24 8 Explosive . | . . . Electromagnetic . | . . . Robot Hit Streak 10 | 4 10 . Robot Miss Streak 3 | 2 3 . Penetration Max . | . . . Secondary Targets 1 | . 1 . Max Gunslinging Chain 1 | . 1 . Shots Hit Robots 42 | 11 31 . Core Hits 13 | 5 8 . Critical Hits . | . . . Critical Kills . | . . . Critical Parts Destroyed . | . . . Melee Attacks . | . . . Impact . | . . . Slashing . | . . . Piercing . | . . . Sneak Attacks . | . . . Combat Hostiles . | . . . Follow-up Attacks . | . . . Damage Inflicted 575 | 151 424 . Guns 431 | 151 280 . Cannons . | . . . Explosions . | . . . Melee . | . . . Ramming . | . . . Kinetic 198 | 64 134 . Thermal 377 | 87 290 . Explosive . | . . . Electromagnetic . | . . . Impact . | . . . Slashing . | . . . Piercing . | . . . Highest Corruption . | . . . Average Corruption . | . . . Corruption Purged . | . . . Overload Shots . | . . . Overflow Damage 18 | . 18 . Projectiles 18 | . 18 . Explosions . | . . . Melee . | . . . Knockbacks . | . . . Impact . | . . . Kinetic . | . . . Secondary . | . . . Self-Inflicted Damage . | . . . Shots . | . . . Rammed . | . . . Targets Rammed . | . . . Kicked . | . . . Crushed . | . . . Highest Temperature 159 | 27 159 112 Average Temperature 50 | 9 67 48 Received Heat Transfer 216 | . 192 24 Siege Activations . | . . . Robots Corrupted . | . . . Combat Hostiles . | . . . Parts Fried . | . . . Impact Corruptions . | . . . Robots Melted . | . . . Combat Hostiles . | . . . Parts Melted 3 | . 3 . Heat Transferred 967 | 259 708 . Parts Sabotaged . | . . . Parts Stolen . | . . . Parts Stripped . | . . . Power Chain Reactions . | . . . Missiles Intercepted . | . . . Alert | -11 -10 -10 ------- Run | Scr Mat Min Peak Influence 128 | 20 128 15 Average Influence 41 | 7 67 1 Maximum Alert Level . | . . . Low Security (%) 100 | 100 100 100 Level 1 . | . . . Level 2 . | . . . Level 3 . | . . . Level 4 . | . . . Level 5 . | . . . High Security . | . . . Max Security . | . . . Squads Dispatched 1 | . 1 . Investigation . | . . . Extermination . | . . . Reinforcement 1 | . 1 . Assault . | . . . Garrison . | . . . Intercept . | . . . Construction Impeded . | . . . Haulers Reinforced . | . . . Stealth | -11 -10 -10 --------- Run | Scr Mat Min Distress Signals . | . . . Communications Jammed . | . . . Distress Signals . | . . . Times Spotted 27 | . 19 8 Peak Tracking Total 7 | . 5 7 Tactical Retreats 5 | . 5 . Traps | -11 -10 -10 ------- Run | Scr Mat Min Traps Triggered . | . . . Indirectly . | . . . Trap Hack Attempts . | . . . Triggered . | . . . Disarmed . | . . . Reprogrammed . | . . . Reused . | . . . Traps Extracted . | . . . Installed . | . . . Triggered . | . . . Machines | -11 -10 -10 ---------- Run | Scr Mat Min Machines Disabled . | . . . Max in Single Turn . | . . . Machines Sabotaged . | . . . Garrisons Compromised . | . . . Overloaded Fab Kills . | . . . Fab Network Shutdowns . | . . . Hacking | -11 -10 -10 --------- Run | Scr Mat Min Machines Accessed 2 | . 2 . Terminals 2 | . 2 . Fabricators . | . . . Repair Stations . | . . . Recycling Units . | . . . Scanalyzers . | . . . Garrison Access . | . . . Total Hacks 9 | . 9 . Successful 1 | . 1 . Failed 8 | . 8 . Catastrophic . | . . . Database Lockouts . | . . . Manual 6 | . 6 . Terminals 9 | . 9 . Fabricators . | . . . Repair Stations . | . . . Recycling Units . | . . . Scanalyzers . | . . . Garrison Access . | . . . Terminal Hacks . | . . . Fabricator Hacks . | . . . Repair Station Hacks . | . . . Recycling Unit Hacks . | . . . Scanalyzer . | . . . Garrison Access Hacks . | . . . Unauthorized Hacks 3 | . 3 . Terminals 1 | . 1 . Botnet 1 | . 1 . Fabricators . | . . . Repair Stations . | . . . Recycling Units . | . . . Scanalyzers . | . . . Garrison Access . | . . . Data Cores Recovered . | . . . Used . | . . . Hacking Detections 2 | . 2 . Full Trace Events . | . . . Feedback Events . | . . . Feedback Blocked . | . . . Robot Schematics Acquired . | . . . Robots Built . | . . . Matter . | . . . Time . | . . . Total Robot Build Rating . | . . . Part Schematics Acquired . | . . . Parts Built . | . . . Matter . | . . . Time . | . . . Total Part Build Rating . | . . . Parts Repaired . | . . . Time . | . . . Parts Recycled . | . . . Recycled Matter . | . . . Retrieved Matter . | . . . Retrieved Components . | . . . Parts Scanalyzed . | . . . Part Schematics Acquired . | . . . Parts Damaged . | . . . Bothacking | -11 -10 -10 ------------ Run | Scr Mat Min Used RIF Installer . | . . . Robots Hacked . | . . . Non-combat . | . . . Combat . | . . . Robot Hacks Applied . | . . . Relay Couplers Released . | . . . Robots Rewired . | . . . Allies Hacked . | . . . Hacks Repelled . | . . . Allies | -11 -10 -10 -------- Run | Scr Mat Min Total Allies . | . . . Largest Group . | . . . Highest-Rated Group . | . . . Highest-Rated Ally . | . . . Total Orders . | . . . Ally Attacks . | . . . Total Damage . | . . . Kills . | . . . Allies Corrupted . | . . . Allies Melted . | . . . Intel | -11 -10 -10 ------- Run | Scr Mat Min Robot Analysis Total . | . . . Derelict Logs Recovered 1 | . . 1 Drone Launches . | . . . Drone Recoveries . | . . . Exploration | -11 -10 -10 ------------- Run | Scr Mat Min Turns Passed 866 | 150 517 199 Spaces Moved 639 | 105 396 138 Core 20 | 3 . 17 Treads . | . . . Legs . | . . . Wheels 619 | 102 396 121 Hover . | . . . Flight . | . . . Fastest Speed 50 | 50 100 50 Average Speed 95 | 98 101 76 Slowest Speed 110 | 100 110 80 Overloaded Moves . | . . . Propulsion Burnouts . | . . . Robots Hopped . | . . . Cave-ins Triggered . | . . . Exploration Rate (%) 30 | 5 54 33 Regions Visited 2 Branch Regions 1 Pre-discovered Areas . | . . . Known Exits Taken . | . . . Unknown Exits Taken 2 | 1 1 . Scrap Searched . | . . . Spaces Dug 8 | . . 8 Terrain Destroyed 8 | . . 8 Melee . | . . . Projectile 8 | . . 8 AOE . | . . . Actions | -11 -10 -10 --------- Run | Scr Mat Min Total 792 | 131 451 210 Wait 55 | . 4 51 Move 637 | 104 395 138 Hop . | . . . Pick Up 19 | 10 7 2 Fast Attach 7 | 4 3 . Attach 7 | 3 2 2 Detach 3 | . 1 2 Swap 9 | . 5 4 Drop 14 | 1 6 7 Fire 41 | 9 28 4 Melee . | . . . Ram . | . . . Kick . | . . . Crush . | . . . Escape Stasis . | . . . Rewire . | . . . Trap . | . . . Miscellaneous . | . . . Route ------- -11/Scrapyard -10/Materials (discovered 2 exits: [*Mat] / [*Min]) -10/Mines (discovered 2 exits: [*Mat x2]) History --------- Turn | Location | Event 34 | -11/Scrapyard | Discovered new exit (range 15) 151 | -11/Scrapyard | Entered Materials 318 | -10/Materials | Build established: Mutant 432 | -10/Materials | Discovered new exit (range 3) 654 | -10/Materials | Discovered new exit (range 6) 668 | -10/Materials | Entered Mines 677 | -10/Mines | Discovered new exit (range 13) 786 | -10/Mines | Discovered new exit (range 14) 793 | -10/Mines | Learned Materials terminal intel 822 | -10/Mines | Assembled infested the area 855 | -10/Mines | Core integrity fell below 50% 861 | -10/Mines | Core integrity fell below 20% 867 | -10/Mines | Destroyed by as-75175 with Assembled Heavy Rifle Last Messages --------------- 00786_ Acquired 95 matter. 00786_ EXIT=FOUND 00793_ Acquired derelict log, extracted data. Data stored: Materials terminal intel. 00822_ ALERT: Infestation in the mines, dispatching Demolisher response squad. 00852_ C-30 ARC bursts open, deploying its payload. 00852_ D-53 Grenadier unfolds itself. 00854_ Plasma Injector explodes. 00854_ Wheel destroyed. 00854_ Mining Laser destroyed. 00854_ Plasma Injector explodes. 00856_ as-91059 destroyed. 00857_ Mining Laser destroyed. 00857_ Imp. Terrain Scanner destroyed. 00857_ Wheel destroyed. 00857_ as-17298 destroyed. 00858_ Lgt. Ion Engine destroyed. 00858_ Seismic Analyzer destroyed. 00859_ The unstable cave ceiling collapses. Map ----- +----------------------------------------------------+ | | | | | | | | | | | | | ?????????????????????????????????????????????????? | | ?????????????????????????????????????????????????? | | ?????????????????????????????????????????????????? | | ?????????????????????????????????????????????????? | | ?????????????????????????????????????????????????? | | ?????????????????????????????????????????????????? | | ?????????????????????????????????????????????????? | | ?????????????????????????????????????????????????? | | ????????????????? ??????????????????????????????? | | ????????????????# ??????????????????????????????? | | ???????????? ### ??????????????????????????????? | | ??????????? #?????????????????????????????? | | ???????????? a ##???????????????????????????? | | ?????????#?? ##??????????????????????????? | | ?????????????# ##?#???????????????????????? | | ??????????????# #?????????????????????????? | | ??????????#??## #?????????????????????????? | | ????????????## " ####??????????????????????? | | ?????#????#?# #??????????????????????? | | ?#??????#?#?# ###@#??????????????????????? | | #????#????#??# # #??????????????????????? | | ??#?#????????# #a##?#???????????????????? | | ??#????##?##### ##????????????????????? | | ??????#????### ##a##????????????????????? | | ??#?????##?## ### #?????????????????????? | | ??#??????### #?# #?????????????????????? | | ???#?#???# # #?#a#?????????????????????? | | ??###?#### ##?# ?????????????????????? | | ???##?# "% # #??###?????????????????????? | | ?##???# ## ###?????????????????????????? | | ??????# ## ###??#???????????????????????? | | ???#?## ## ###??#????????????????????????? | | ??????# "" ##??##?????????????????????????? | | ??????# "" "?????##???????????????????????? | | ??###?# ## "#?#?#?#?#?????????????????????? | | ?#??#?# ## "??#?#?#?#?????????????????????? | | ???#### ## ####?#?##??????????????????????? | | ?#????# ## "???##???##????????????????????? | | #???#?# ## ####?##?##?##??#???????????????? | | ???#### ####"#"""####?#####??#???????????????????? | | ####### ##?#######??##########???????????????????? | | ??# ##?###???##?##?# #####??????????????????? | | ### ########??#####?### ? ?#??????????????? | | #??#?##??## ##??# ##???#????????????????? | +----------------------------------------------------+ Best States ------------- Heat Dissipation 25 Energy Generation 10 Energy Capacity 250 Matter Stores 300 Matter Capacity 300 Sight Range 16 Terrain Scan Range 16 Terrain Scan Density 60 Evasion (%) 48 Item Schematics ----------------- None Robot Schematics ------------------ None Fabricated ------------ Nothing Alien Tech Used ----------------- None Achievements -------------- None Challenges ------------ None Game ------ Seed UltimateResetLauncher Manual? 0 Play Time 00:15:14 Cumulative 36.5 hours Start 2019.11.30 @ 16:39:05 End 2019.11.30 @ 16:51:20 Sessions 1 Manual Loads 0 Difficulty Rogue Special Mode None Game No. 34 Rogue 34 Adventurer 0 Explorer 0 Win Type - Total 0 Types 0/0/0/0/0/0/0 Lore% 17 Gallery% 38 Achievement% 24 Wizard Run 0 Options --------- ASCII 0 Keyboard 1 Movement Numpad Keybinds 0 Fullscreen 2 Font 18/SmallcapsGlow Map View 76x50 Tactical HUD 1 Map Filters NONE Filters NONE Steam 1 RUN: 7e80c528-75a0-48c2-87ca-ccdad2fac779